[Event "*** Titled Tuesday Blitz"]
[Site "Chess.com"]
[Date "2020.05.05"]
[Round "2"]
[White "BaMBoMaTTo"]
[Black "Witaliss"]
[Result "1-0"]
[WhiteElo "2677"]
[BlackElo "2468"]
[TimeControl "180+1"]
[EndTime "10:20:21 PDT"]
[Termination "BaMBoMaTTo won on time"]

1. d4 {[%clk 0:03:00.2]} 1... c6 {[%clk 0:02:59.2]} 2. c4 {[%clk 0:03:00.5]}
2... Nf6 {[%clk 0:02:58.2]} 3. Nf3 {[%clk 0:02:57]} 3... d5 {[%clk 0:02:57.5]}
4. e3 {[%clk 0:02:57.2]} 4... a6 {[%clk 0:02:56.7]} 5. Ne5 {[%clk 0:02:56.2]}
5... Nfd7 {[%clk 0:02:46.5]} 6. cxd5 {[%clk 0:02:49.9]} 6... Nxe5 {[%clk
0:02:42.4]} 7. dxe5 {[%clk 0:02:50.5]} 7... Qxd5 {[%clk 0:02:41.7]} 8. Qxd5
{[%clk 0:02:44.1]} 8... cxd5 {[%clk 0:02:41.1]} 9. Nc3 {[%clk 0:02:45]} 9... e6
{[%clk 0:02:40.7]} 10. e4 {[%clk 0:02:42.8]} 10... d4 {[%clk 0:02:35.9]} 11. Na4
{[%clk 0:02:32.3]} 11... Nd7 {[%clk 0:02:33.8]} 12. b3 {[%clk 0:02:08.5]} 12...
b5 {[%clk 0:02:32.9]} 13. Nb2 {[%clk 0:02:08.6]} 13... Nxe5 {[%clk 0:02:32.9]}
14. Nd3 {[%clk 0:01:56.7]} 14... Nxd3+ {[%clk 0:02:27.7]} 15. Bxd3 {[%clk
0:01:57.6]} 15... e5 {[%clk 0:02:27.1]} 16. a4 {[%clk 0:01:55.8]} 16... bxa4
{[%clk 0:02:09.8]} 17. Rxa4 {[%clk 0:01:56.7]} 17... Bd6 {[%clk 0:01:58.2]} 18.
Bd2 {[%clk 0:01:47.2]} 18... Ke7 {[%clk 0:01:54.2]} 19. Ke2 {[%clk 0:01:46.6]}
19... Rb8 {[%clk 0:01:46.4]} 20. b4 {[%clk 0:01:32.8]} 20... Bd7 {[%clk
0:01:43]} 21. Rxa6 {[%clk 0:01:31]} 21... Bxb4 {[%clk 0:01:42.7]} 22. Rd1 {[%clk
0:01:11]} 22... Bxd2 {[%clk 0:01:39.5]} 23. Rxd2 {[%clk 0:01:11.9]} 23... Rhc8
{[%clk 0:01:37.8]} 24. Ra7 {[%clk 0:01:11.5]} 24... Kd6 {[%clk 0:01:33.5]} 25.
Rda2 {[%clk 0:01:06.9]} 25... Rb6 {[%clk 0:01:29.2]} 26. R2a6 {[%clk 0:00:48.8]}
26... Rcc6 {[%clk 0:01:24.2]} 27. Ra2 {[%clk 0:00:27.3]} 27... Rc7 {[%clk
0:01:19.2]} 28. R7a6 {[%clk 0:00:21.8]} 28... Rxa6 {[%clk 0:01:17.2]} 29. Rxa6+
{[%clk 0:00:22.7]} 29... Rc6 {[%clk 0:01:16.3]} 30. Ra5 {[%clk 0:00:21.1]} 30...
Rc5 {[%clk 0:01:08.3]} 31. Ra6+ {[%clk 0:00:20.6]} 31... Ke7 {[%clk 0:01:05.8]}
32. Ra7 {[%clk 0:00:20.3]} 32... h6 {[%clk 0:01:03.2]} 33. g3 {[%clk 0:00:18.4]}
33... Kd6 {[%clk 0:00:58.6]} 34. f4 {[%clk 0:00:17.1]} 34... f6 {[%clk
0:00:55.2]} 35. Kd2 {[%clk 0:00:17.2]} 35... exf4 {[%clk 0:00:48.7]} 36. gxf4
{[%clk 0:00:18.1]} 36... g5 {[%clk 0:00:48.8]} 37. Ra6+ {[%clk 0:00:12.7]} 37...
Ke7 {[%clk 0:00:47.6]} 38. fxg5 {[%clk 0:00:10.8]} 38... Rxg5 {[%clk 0:00:45.2]}
39. Bc4 {[%clk 0:00:11.2]} 39... Rh5 {[%clk 0:00:42.6]} 40. Kd3 {[%clk
0:00:11.2]} 40... Rxh2 {[%clk 0:00:41.9]} 41. Kxd4 {[%clk 0:00:11.6]} 41... Rd2+
{[%clk 0:00:38.9]} 42. Ke3 {[%clk 0:00:12.2]} 42... Rd6 {[%clk 0:00:38.2]} 43.
Ra7 {[%clk 0:00:07.9]} 43... h5 {[%clk 0:00:36.8]} 44. Kf4 {[%clk 0:00:08.3]}
44... Kd8 {[%clk 0:00:29.9]} 45. Ra8+ {[%clk 0:00:08.5]} 45... Kc7 {[%clk
0:00:29.2]} 46. Rh8 {[%clk 0:00:09.4]} 46... Bg4 {[%clk 0:00:27.6]} 47. Bf7
{[%clk 0:00:08.6]} 47... Rd4 {[%clk 0:00:24]} 48. Bxh5 {[%clk 0:00:08.7]} 48...
Bxh5 {[%clk 0:00:23.4]} 49. Rxh5 {[%clk 0:00:09.6]} 49... Kd6 {[%clk 0:00:22.9]}
50. Ra5 {[%clk 0:00:09.7]} 50... Ke6 {[%clk 0:00:22.2]} 51. Ra6+ {[%clk
0:00:10.1]} 51... Kf7 {[%clk 0:00:21.6]} 52. Kf5 {[%clk 0:00:11]} 52... Ke7
{[%clk 0:00:20.5]} 53. Ra7+ {[%clk 0:00:10.4]} 53... Kd6 {[%clk 0:00:17.9]} 54.
Ra8 {[%clk 0:00:10.4]} 54... Ke7 {[%clk 0:00:17.2]} 55. Ra7+ {[%clk 0:00:09.5]}
55... Kd6 {[%clk 0:00:16.1]} 56. Rf7 {[%clk 0:00:10.1]} 56... Rd1 {[%clk
0:00:13.7]} 57. Rxf6+ {[%clk 0:00:11]} 57... Ke7 {[%clk 0:00:13.6]} 58. Ra6
{[%clk 0:00:11.5]} 58... Rf1+ {[%clk 0:00:11.7]} 59. Ke5 {[%clk 0:00:11.9]}
59... Rb1 {[%clk 0:00:11]} 60. Ra7+ {[%clk 0:00:12.3]} 60... Ke8 {[%clk
0:00:10.5]} 61. Ke6 {[%clk 0:00:12.4]} 61... Rb6+ {[%clk 0:00:09.6]} 62. Kf5
{[%clk 0:00:12.9]} 62... Rc6 {[%clk 0:00:09]} 63. e5 {[%clk 0:00:13.2]} 63...
Rb6 {[%clk 0:00:08.8]} 64. Rg7 {[%clk 0:00:13.7]} 64... Rc6 {[%clk 0:00:07.4]}
65. Rb7 {[%clk 0:00:14.3]} 65... Ra6 {[%clk 0:00:06.6]} 66. Ke4 {[%clk
0:00:14.8]} 66... Rc6 {[%clk 0:00:05.5]} 67. Kd5 {[%clk 0:00:15.1]} 67... Rh6
{[%clk 0:00:04.8]} 68. Rg7 {[%clk 0:00:15.1]} 68... Kf8 {[%clk 0:00:04]} 69. Ra7
{[%clk 0:00:15.4]} 69... Ke8 {[%clk 0:00:03.8]} 70. Ra8+ {[%clk 0:00:15]} 70...
Ke7 {[%clk 0:00:03.6]} 71. Rg8 {[%clk 0:00:14.6]} 71... Ra6 {[%clk 0:00:02]} 72.
Rg7+ {[%clk 0:00:15.1]} 72... Ke8 {[%clk 0:00:02]} 73. Rb7 {[%clk 0:00:16]} 1-0

[Event "*** Titled Tuesday Blitz"]
[Site "Chess.com"]
[Date "2020.05.05"]
[Round "2"]
[White "Nbk90"]
[Black "731291"]
[Result "1/2-1/2"]
[WhiteElo "2485"]
[BlackElo "2686"]
[TimeControl "180+1"]
[EndTime "10:20:27 PDT"]
[Termination "Game drawn by repetition"]

1. Nf3 {[%clk 0:03:00.9]} 1... c5 {[%clk 0:02:54.3]} 2. g3 {[%clk 0:03:01.8]}
2... Nc6 {[%clk 0:02:54]} 3. Bg2 {[%clk 0:03:01.7]} 3... e5 {[%clk 0:02:53.6]}
4. d3 {[%clk 0:03:01.1]} 4... g6 {[%clk 0:02:53.9]} 5. O-O {[%clk 0:03:01]} 5...
Bg7 {[%clk 0:02:54.1]} 6. c4 {[%clk 0:03:00.6]} 6... Nge7 {[%clk 0:02:54.5]} 7.
Nc3 {[%clk 0:03:00.3]} 7... O-O {[%clk 0:02:55.1]} 8. a3 {[%clk 0:03:00.3]} 8...
d6 {[%clk 0:02:54.8]} 9. Rb1 {[%clk 0:02:58.7]} 9... a5 {[%clk 0:02:54.8]} 10.
Bg5 {[%clk 0:02:53.5]} 10... f6 {[%clk 0:02:53.1]} 11. Bd2 {[%clk 0:02:53]}
11... Be6 {[%clk 0:02:52.7]} 12. Ne1 {[%clk 0:02:47.2]} 12... d5 {[%clk
0:02:51.6]} 13. cxd5 {[%clk 0:02:43.7]} 13... Nxd5 {[%clk 0:02:52.5]} 14. Nc2
{[%clk 0:02:44.1]} 14... Rb8 {[%clk 0:02:41]} 15. Ne3 {[%clk 0:02:38.4]} 15...
Nde7 {[%clk 0:02:40]} 16. Ne4 {[%clk 0:02:30]} 16... b6 {[%clk 0:02:39.3]} 17.
b4 {[%clk 0:02:24.3]} 17... cxb4 {[%clk 0:02:30.6]} 18. axb4 {[%clk 0:02:25.2]}
18... Nxb4 {[%clk 0:02:26.2]} 19. Bxb4 {[%clk 0:02:23.8]} 19... axb4 {[%clk
0:02:27.1]} 20. Rxb4 {[%clk 0:02:17.9]} 20... Nc6 {[%clk 0:02:19]} 21. Nxf6+
{[%clk 0:02:07.8]} 21... Bxf6 {[%clk 0:01:58.1]} 22. Bxc6 {[%clk 0:02:06.9]}
22... Qd6 {[%clk 0:01:58.7]} 23. Qa4 {[%clk 0:02:05]} 23... Bg5 {[%clk
0:01:49.4]} 24. Rbb1 {[%clk 0:01:28.5]} 24... Bf7 {[%clk 0:00:59.1]} 25. Nc4
{[%clk 0:01:20.7]} 25... Qc5 {[%clk 0:00:56.7]} 26. Qb5 {[%clk 0:01:17.7]} 26...
Bxc4 {[%clk 0:00:46.5]} 27. Qxc4+ {[%clk 0:01:13.9]} 27... Qxc4 {[%clk
0:00:45.3]} 28. dxc4 {[%clk 0:01:14.8]} 28... Be7 {[%clk 0:00:41.8]} 29. Rfd1
{[%clk 0:01:10]} 29... Bc5 {[%clk 0:00:41.4]} 30. e3 {[%clk 0:01:10.1]} 30...
Rfd8 {[%clk 0:00:38.2]} 31. Kf1 {[%clk 0:01:08.1]} 31... Kf7 {[%clk 0:00:37.1]}
32. Ke2 {[%clk 0:01:07.4]} 32... Ke7 {[%clk 0:00:37.2]} 33. Rxd8 {[%clk
0:01:01.7]} 33... Rxd8 {[%clk 0:00:38.1]} 34. Ra1 {[%clk 0:01:00.9]} 34... Kd6
{[%clk 0:00:37.4]} 35. Be4 {[%clk 0:00:58.1]} 35... Rd7 {[%clk 0:00:32.2]} 36.
h4 {[%clk 0:00:47.5]} 36... Ke7 {[%clk 0:00:26]} 37. h5 {[%clk 0:00:44]} 37...
Kf6 {[%clk 0:00:23.4]} 38. hxg6 {[%clk 0:00:42.6]} 38... hxg6 {[%clk 0:00:24.3]}
39. Rh1 {[%clk 0:00:43]} 39... Ra7 {[%clk 0:00:15.6]} 40. Rh6 {[%clk 0:00:40.1]}
40... Rg7 {[%clk 0:00:15.9]} 41. f4 {[%clk 0:00:35.1]} 41... exf4 {[%clk
0:00:12.1]} 42. gxf4 {[%clk 0:00:36]} 42... Re7 {[%clk 0:00:09.5]} 43. Kf3
{[%clk 0:00:35.1]} 43... Rg7 {[%clk 0:00:09]} 44. Bd3 {[%clk 0:00:29.7]} 44...
Kf7 {[%clk 0:00:09.2]} 45. e4 {[%clk 0:00:27.2]} 45... Rg8 {[%clk 0:00:06.4]}
46. e5 {[%clk 0:00:25.8]} 46... Rg7 {[%clk 0:00:04.8]} 47. Be4 {[%clk
0:00:23.8]} 47... Rg8 {[%clk 0:00:04.5]} 48. Kg4 {[%clk 0:00:23.7]} 48... Rg7
{[%clk 0:00:04.4]} 49. Bd3 {[%clk 0:00:15.5]} 49... Be3 {[%clk 0:00:03.5]} 50.
Be4 {[%clk 0:00:15.2]} 50... Bd2 {[%clk 0:00:03.6]} 51. Bd5+ {[%clk 0:00:15]}
51... Ke7 {[%clk 0:00:03.3]} 52. Be4 {[%clk 0:00:13.9]} 52... Kf7 {[%clk
0:00:03.6]} 53. Rh2 {[%clk 0:00:09.9]} 53... Be3 {[%clk 0:00:03.2]} 54. Rh8
{[%clk 0:00:09.6]} 54... Ke7 {[%clk 0:00:03.1]} 55. Bd5 {[%clk 0:00:09.5]} 55...
Bd2 {[%clk 0:00:02.6]} 56. Kg5 {[%clk 0:00:09.7]} 56... Be3 {[%clk 0:00:02.3]}
57. Kg4 {[%clk 0:00:09]} 57... Bd2 {[%clk 0:00:02.7]} 58. Kf3 {[%clk 0:00:09.3]}
58... Bc1 {[%clk 0:00:02.1]} 59. Ke4 {[%clk 0:00:09.5]} 59... Bd2 {[%clk
0:00:01.8]} 60. Rb8 {[%clk 0:00:09.4]} 60... Ba5 {[%clk 0:00:01.6]} 61. Rb7+
{[%clk 0:00:09.3]} 61... Kf8 {[%clk 0:00:02.5]} 62. Rxg7 {[%clk 0:00:08.9]}
62... Kxg7 {[%clk 0:00:02.7]} 63. Bc6 {[%clk 0:00:09.5]} 63... Bb4 {[%clk
0:00:02.5]} 64. Be8 {[%clk 0:00:09.4]} 64... Bd2 {[%clk 0:00:02.8]} 65. Kf3
{[%clk 0:00:09.5]} 65... Bc1 {[%clk 0:00:03.1]} 66. Kg4 {[%clk 0:00:09.7]} 66...
Kh6 {[%clk 0:00:02.2]} 67. Bf7 {[%clk 0:00:07.7]} 67... Bd2 {[%clk 0:00:02.4]}
68. Bd5 {[%clk 0:00:06.8]} 68... Bc1 {[%clk 0:00:02.6]} 69. Be4 {[%clk 0:00:07]}
69... Bd2 {[%clk 0:00:02.9]} 70. Bd5 {[%clk 0:00:07.2]} 70... Bc1 {[%clk
0:00:03.1]} 71. Bc6 {[%clk 0:00:08.1]} 71... Bd2 {[%clk 0:00:03.3]} 72. Be8
{[%clk 0:00:09]} 72... Bc1 {[%clk 0:00:03.8]} 73. Kf3 {[%clk 0:00:09.4]} 73...
Kg7 {[%clk 0:00:03.3]} 74. Ke4 {[%clk 0:00:09.6]} 74... Bd2 {[%clk 0:00:02.9]}
75. Kf3 {[%clk 0:00:09]} 75... Bc1 {[%clk 0:00:03.1]} 1/2-1/2

[Event "*** Titled Tuesday Blitz"]
[Site "Chess.com"]
[Date "2020.05.05"]
[Round "2"]
[White "kingofthenil"]
[Black "MikeKorovin"]
[Result "1-0"]
[WhiteElo "2475"]
[BlackElo "2652"]
[TimeControl "180+1"]
[EndTime "10:20:31 PDT"]
[Termination "kingofthenil won by checkmate"]

1. d4 {[%clk 0:03:00.9]} 1... Nf6 {[%clk 0:02:59.7]} 2. c4 {[%clk 0:03:01.4]}
2... e6 {[%clk 0:02:58.8]} 3. Nc3 {[%clk 0:03:01.5]} 3... Bb4 {[%clk 0:02:59]}
4. a3 {[%clk 0:03:01.9]} 4... Bxc3+ {[%clk 0:02:58.5]} 5. bxc3 {[%clk
0:03:02.8]} 5... O-O {[%clk 0:02:59.1]} 6. f3 {[%clk 0:03:02.6]} 6... d6 {[%clk
0:02:57.3]} 7. e4 {[%clk 0:03:02.2]} 7... e5 {[%clk 0:02:57.6]} 8. Bd3 {[%clk
0:03:03.1]} 8... c5 {[%clk 0:02:57.3]} 9. Ne2 {[%clk 0:03:03.2]} 9... Nc6 {[%clk
0:02:55.3]} 10. O-O {[%clk 0:03:03.3]} 10... cxd4 {[%clk 0:02:54.2]} 11. cxd4
{[%clk 0:03:04.2]} 11... exd4 {[%clk 0:02:53.3]} 12. Bb2 {[%clk 0:03:01]} 12...
Re8 {[%clk 0:02:45.8]} 13. Rb1 {[%clk 0:02:56.8]} 13... Qa5 {[%clk 0:02:42.9]}
14. Nxd4 {[%clk 0:02:23.3]} 14... Qc5 {[%clk 0:02:40.5]} 15. Be2 {[%clk
0:02:18.4]} 15... Be6 {[%clk 0:02:37.9]} 16. Kh1 {[%clk 0:02:13.7]} 16... Rab8
{[%clk 0:02:26.5]} 17. Nb5 {[%clk 0:02:05.3]} 17... a6 {[%clk 0:02:00.7]} 18.
Qxd6 {[%clk 0:01:53.1]} 18... Qe3 {[%clk 0:01:56.6]} 19. Nc3 {[%clk 0:00:37.8]}
19... Rbd8 {[%clk 0:01:40.8]} 20. Qg3 {[%clk 0:00:35.5]} 20... Nh5 {[%clk
0:01:40.5]} 21. Qh4 {[%clk 0:00:24.2]} 21... Nf4 {[%clk 0:01:40.2]} 22. Bc1
{[%clk 0:00:22.7]} 22... Qxc3 {[%clk 0:01:10.3]} 23. Bxf4 {[%clk 0:00:11.5]}
23... Nd4 {[%clk 0:00:57.5]} 24. Qf2 {[%clk 0:00:10.9]} 24... Qc2 {[%clk
0:00:50.5]} 25. Rfe1 {[%clk 0:00:04.3]} 25... Nxe2 {[%clk 0:00:10.6]} 26. Qxe2
{[%clk 0:00:04.3]} 26... Qxe2 {[%clk 0:00:11.1]} 27. Rxe2 {[%clk 0:00:05.2]}
27... Bxc4 {[%clk 0:00:12]} 28. Rd2 {[%clk 0:00:03.6]} 28... b5 {[%clk
0:00:12.4]} 29. Rbd1 {[%clk 0:00:02.7]} 29... Rxd2 {[%clk 0:00:11.6]} 30. Rxd2
{[%clk 0:00:03.6]} 30... f6 {[%clk 0:00:12.5]} 31. h3 {[%clk 0:00:02.4]} 31...
Re7 {[%clk 0:00:10.4]} 32. Rd6 {[%clk 0:00:02.6]} 32... a5 {[%clk 0:00:05.1]}
33. Bd2 {[%clk 0:00:02.4]} 33... a4 {[%clk 0:00:04.1]} 34. Bb4 {[%clk
0:00:02.3]} 34... Kf7 {[%clk 0:00:03.9]} 35. Rd4 {[%clk 0:00:01.4]} 35... Re6
{[%clk 0:00:03.1]} 36. Kh2 {[%clk 0:00:02]} 36... Kg6 {[%clk 0:00:03.4]} 37. Rd7
{[%clk 0:00:01.8]} 37... h5 {[%clk 0:00:04.3]} 38. Bf8 {[%clk 0:00:01.4]} 38...
Kh7 {[%clk 0:00:02.1]} 39. Rxg7+ {[%clk 0:00:02.3]} 39... Kh8 {[%clk 0:00:02.3]}
40. Rc7 {[%clk 0:00:03.2]} 40... Ra6 {[%clk 0:00:01.9]} 41. Bc5 {[%clk
0:00:01.7]} 41... Kg8 {[%clk 0:00:02.5]} 42. Bb4 {[%clk 0:00:02.1]} 42... Re6
{[%clk 0:00:02.2]} 43. h4 {[%clk 0:00:03]} 43... Ra6 {[%clk 0:00:01.9]} 44. Kg3
{[%clk 0:00:03.4]} 44... Kh8 {[%clk 0:00:02.8]} 45. Kf4 {[%clk 0:00:03.7]} 45...
Be6 {[%clk 0:00:03.3]} 46. g4 {[%clk 0:00:03.8]} 46... hxg4 {[%clk 0:00:03.3]}
47. fxg4 {[%clk 0:00:04.7]} 47... Kg8 {[%clk 0:00:04.2]} 48. h5 {[%clk
0:00:04.6]} 48... Bf7 {[%clk 0:00:04.3]} 49. Kf5 {[%clk 0:00:03.3]} 49... Be6+
{[%clk 0:00:03.9]} 50. Kxf6 {[%clk 0:00:03.5]} 50... Bxg4+ {[%clk 0:00:03.6]}
51. Kg5 {[%clk 0:00:04.4]} 51... Bf3 {[%clk 0:00:04]} 52. e5 {[%clk 0:00:04]}
52... Be4 {[%clk 0:00:03.9]} 53. h6 {[%clk 0:00:03.1]} 53... Bd3 {[%clk
0:00:03.3]} 54. Rg7+ {[%clk 0:00:01.9]} 54... Kh8 {[%clk 0:00:02.9]} 55. Be7
{[%clk 0:00:02.8]} 55... Bf5 {[%clk 0:00:03.1]} 56. Kxf5 {[%clk 0:00:01.9]}
56... Rxh6 {[%clk 0:00:03.7]} 57. Rg6 {[%clk 0:00:01.9]} 57... Rh5+ {[%clk
0:00:04.1]} 58. Rg5 {[%clk 0:00:01.8]} 58... Rh3 {[%clk 0:00:03.8]} 59. Bf6+
{[%clk 0:00:02.7]} 59... Kh7 {[%clk 0:00:03.7]} 60. Rg7+ {[%clk 0:00:03.6]}
60... Kh6 {[%clk 0:00:04.1]} 61. Rg8 {[%clk 0:00:04.5]} 61... Rf3+ {[%clk
0:00:03.4]} 62. Ke6 {[%clk 0:00:05]} 62... Rxa3 {[%clk 0:00:04.3]} 63. Kf7
{[%clk 0:00:05.3]} 63... Kh5 {[%clk 0:00:03.9]} 64. Rg5+ {[%clk 0:00:04.1]}
64... Kh4 {[%clk 0:00:03.8]} 65. e6 {[%clk 0:00:04.3]} 65... Kh3 {[%clk
0:00:02.9]} 66. e7 {[%clk 0:00:04.1]} 66... Re3 {[%clk 0:00:03.3]} 67. Re5
{[%clk 0:00:04.4]} 67... Rc3 {[%clk 0:00:02.3]} 68. e8=Q {[%clk 0:00:04.1]}
68... Rg3 {[%clk 0:00:03.2]} 69. Ke7 {[%clk 0:00:04.1]} 69... b4 {[%clk
0:00:03]} 70. Qh5+ {[%clk 0:00:05]} 70... Kg2 {[%clk 0:00:03.9]} 71. Re2+ {[%clk
0:00:05.5]} 71... Kf1 {[%clk 0:00:04.5]} 72. Qh2 {[%clk 0:00:04.6]} 72... Rg2
{[%clk 0:00:01.8]} 73. Qxg2# {[%clk 0:00:04.6]} 1-0

[Event "*** Titled Tuesday Blitz"]
[Site "Chess.com"]
[Date "2020.05.05"]
[Round "2"]
[White "Bigfish1995"]
[Black "aNaartjieZA"]
[Result "1-0"]
[WhiteElo "3114"]
[BlackElo "2595"]
[TimeControl "180+1"]
[EndTime "10:20:35 PDT"]
[Termination "Bigfish1995 won by resignation"]

1. d4 {[%clk 0:02:53.8]} 1... Nf6 {[%clk 0:02:59.5]} 2. c4 {[%clk 0:02:54.4]}
2... c5 {[%clk 0:02:59.3]} 3. d5 {[%clk 0:02:53.3]} 3... e5 {[%clk 0:02:59.3]}
4. Nc3 {[%clk 0:02:52.2]} 4... d6 {[%clk 0:02:59.5]} 5. e4 {[%clk 0:02:52.5]}
5... Be7 {[%clk 0:02:59.9]} 6. Be2 {[%clk 0:02:52.5]} 6... Nbd7 {[%clk
0:03:00.4]} 7. f4 {[%clk 0:02:48.9]} 7... O-O {[%clk 0:02:45.7]} 8. f5 {[%clk
0:02:48.5]} 8... a6 {[%clk 0:02:42.7]} 9. g4 {[%clk 0:02:47]} 9... Ne8 {[%clk
0:02:40.6]} 10. Nf3 {[%clk 0:02:46.6]} 10... Bh4+ {[%clk 0:02:40.3]} 11. Kf1
{[%clk 0:02:46.2]} 11... h6 {[%clk 0:02:35.4]} 12. Rg1 {[%clk 0:02:40.5]} 12...
Bg5 {[%clk 0:02:32.6]} 13. Nxg5 {[%clk 0:02:37.4]} 13... hxg5 {[%clk 0:02:32.4]}
14. Qd2 {[%clk 0:02:31.5]} 14... f6 {[%clk 0:02:31.6]} 15. h4 {[%clk 0:02:31.7]}
15... gxh4 {[%clk 0:02:25.6]} 16. g5 {[%clk 0:02:32.1]} 16... fxg5 {[%clk
0:02:25.2]} 17. Rxg5 {[%clk 0:02:29.6]} 17... Ndf6 {[%clk 0:02:23.1]} 18. Qe1
{[%clk 0:02:28.1]} 18... b5 {[%clk 0:02:21.1]} 19. Qxh4 {[%clk 0:02:26.1]} 19...
Bd7 {[%clk 0:02:11.7]} 20. Be3 {[%clk 0:02:15]} 20... Nh7 {[%clk 0:02:10.5]} 21.
Rh5 {[%clk 0:01:33.2]} 21... Qxh4 {[%clk 0:02:08.9]} 22. Rxh4 {[%clk 0:01:34.1]}
22... bxc4 {[%clk 0:02:02.6]} 23. Bxc4 {[%clk 0:01:33]} 23... Nef6 {[%clk
0:02:02.2]} 24. Ke2 {[%clk 0:01:32.8]} 24... Rab8 {[%clk 0:01:56.5]} 25. b3
{[%clk 0:01:33]} 25... Bb5 {[%clk 0:01:56.5]} 26. Nxb5 {[%clk 0:01:29.1]} 26...
axb5 {[%clk 0:01:56.5]} 27. Bd3 {[%clk 0:01:29.7]} 27... b4 {[%clk 0:01:56.8]}
28. Rah1 {[%clk 0:01:24.5]} 28... Ra8 {[%clk 0:01:55.6]} 29. Bb1 {[%clk
0:01:24.5]} 29... Rf7 {[%clk 0:01:51.7]} 30. Kd1 {[%clk 0:01:23.5]} 30... Rfa7
{[%clk 0:01:50.5]} 31. R1h2 {[%clk 0:01:21.9]} 31... Rc7 {[%clk 0:01:48.9]} 32.
Kc1 {[%clk 0:01:14.5]} 32... Rac8 {[%clk 0:01:41.9]} 33. Bd3 {[%clk 0:01:14]}
33... Ra8 {[%clk 0:01:41]} 34. Bb5 {[%clk 0:01:11.7]} 34... Rca7 {[%clk
0:01:40.7]} 35. Kb1 {[%clk 0:01:11.8]} 35... Rf8 {[%clk 0:01:38]} 36. Bc4 {[%clk
0:01:05.2]} 36... Rb8 {[%clk 0:01:36.1]} 37. Be2 {[%clk 0:01:00.8]} 37... Rba8
{[%clk 0:01:32.1]} 38. Bf3 {[%clk 0:01:00.3]} 38... Ra3 {[%clk 0:01:25.2]} 39.
Bc1 {[%clk 0:00:59.5]} 39... R3a7 {[%clk 0:01:25]} 40. Rg2 {[%clk 0:00:54.3]}
40... Rc7 {[%clk 0:01:16.9]} 41. Be2 {[%clk 0:00:51.9]} 41... Rca7 {[%clk
0:01:14.2]} 42. Bc4 {[%clk 0:00:51.3]} 42... Kf7 {[%clk 0:01:04.3]} 43. Rgh2
{[%clk 0:00:50.3]} 43... Kg8 {[%clk 0:01:03.6]} 44. Bb5 {[%clk 0:00:48.7]} 44...
Ra5 {[%clk 0:00:44.8]} 45. Bc6 {[%clk 0:00:38.7]} 45... Rf8 {[%clk 0:00:44.2]}
46. Bd7 {[%clk 0:00:32.7]} 46... Nxd7 {[%clk 0:00:43.1]} 47. Rxh7 {[%clk
0:00:32.7]} 47... Nf6 {[%clk 0:00:42.2]} 48. R7h4 {[%clk 0:00:33.1]} 48... Kf7
{[%clk 0:00:41.4]} 49. Bg5 {[%clk 0:00:33.7]} 49... Raa8 {[%clk 0:00:33.9]} 50.
Bxf6 {[%clk 0:00:31.8]} 50... Kxf6 {[%clk 0:00:34.1]} 51. Rg4 {[%clk 0:00:32.1]}
51... Kf7 {[%clk 0:00:33.4]} 52. Rh7 {[%clk 0:00:30.6]} 52... Rg8 {[%clk
0:00:32.8]} 53. Rg6 {[%clk 0:00:31.2]} 53... Rad8 {[%clk 0:00:32.2]} 54. Kc2
{[%clk 0:00:31.5]} 54... Rd7 {[%clk 0:00:28.5]} 55. Kd3 {[%clk 0:00:31.5]} 55...
Ra7 {[%clk 0:00:20]} 56. Rg2 {[%clk 0:00:30.2]} 56... Rb7 {[%clk 0:00:16.6]} 57.
Kc4 {[%clk 0:00:30.2]} 57... Kf8 {[%clk 0:00:16.3]} 58. f6 {[%clk 0:00:25.9]}
58... Rf7 {[%clk 0:00:14.3]} 59. fxg7+ {[%clk 0:00:24.7]} 59... Ke7 {[%clk
0:00:14.1]} 60. Kd3 {[%clk 0:00:19.3]} 60... Kd7 {[%clk 0:00:13.9]} 61. Ke3
{[%clk 0:00:18.9]} 61... Ke7 {[%clk 0:00:14.3]} 62. Rg6 {[%clk 0:00:18.5]} 62...
Kd7 {[%clk 0:00:13.8]} 63. Ke2 {[%clk 0:00:18.7]} 63... Ke7 {[%clk 0:00:14.1]}
64. Kd3 {[%clk 0:00:17.5]} 64... Kd7 {[%clk 0:00:14.4]} 65. Kc4 {[%clk 0:00:18]}
65... Kc7 {[%clk 0:00:14.6]} 66. Rhh6 {[%clk 0:00:14.9]} 66... Rd7 {[%clk
0:00:13.6]} 67. Rh7 {[%clk 0:00:13.6]} 67... Rf7 {[%clk 0:00:13.3]} 68. Rg4
{[%clk 0:00:14.1]} 68... Kd7 {[%clk 0:00:11.9]} 69. Kd3 {[%clk 0:00:11.3]} 69...
Ke7 {[%clk 0:00:11.8]} 70. Ke3 {[%clk 0:00:11]} 70... Kd7 {[%clk 0:00:11.5]} 71.
Rg6 {[%clk 0:00:11.1]} 71... Ke7 {[%clk 0:00:11.3]} 72. Re6+ {[%clk 0:00:10.1]}
72... Kd7 {[%clk 0:00:11.4]} 73. Rhh6 {[%clk 0:00:11]} 73... Rfxg7 {[%clk
0:00:11]} 74. Rxd6+ {[%clk 0:00:11.9]} 74... Kc7 {[%clk 0:00:11.1]} 75. Rc6+
{[%clk 0:00:12.3]} 75... Kb7 {[%clk 0:00:11.5]} 76. Kd3 {[%clk 0:00:12.5]} 76...
Rg3+ {[%clk 0:00:11]} 77. Kc4 {[%clk 0:00:12.3]} 77... Rc3+ {[%clk 0:00:11.1]}
78. Kb5 {[%clk 0:00:12.7]} 78... Rb8 {[%clk 0:00:10.1]} 79. Rh7+ {[%clk
0:00:12.1]} 79... Ka8+ {[%clk 0:00:10.2]} 80. Ka5 {[%clk 0:00:12.7]} 80... Rb7
{[%clk 0:00:09.3]} 81. Rxb7 {[%clk 0:00:08.7]} 81... Kxb7 {[%clk 0:00:09.5]} 82.
Kb5 {[%clk 0:00:09.2]} 82... Rc2 {[%clk 0:00:09.6]} 83. Rxc5 {[%clk 0:00:09.4]}
83... Rxa2 {[%clk 0:00:09.8]} 84. Kxb4 {[%clk 0:00:09.9]} 84... Re2 {[%clk
0:00:10.4]} 85. Rc4 {[%clk 0:00:09.9]} 1-0